bitfinex-derivatives/quotes_ETHF0:USTF0_20240905
["timestamp","ask_amount","ask_price","bid_price","bid_amount"]
[1725517774873,3.2078,2394.4,2394.0,2.89]
[1725517775167,3.50016,2394.4,2394.0,2.89]
[1725517775563,3.2078,2394.4,2394.0,2.89]
[1725517776273,3.2078,2394.4,2394.2,2.89]
[1725517776670,3.2078,2394.4,2394.2,7.0668]
[1725517776967,3.2078,2394.4,2394.0,2.89]
[1725517777170,3.50016,2394.4,2394.0,2.89]
[1725517777364,3.50017,2394.4,2393.8,2.89]
[1725517777565,3.50017,2394.4,2394.1,2.89]
[1725517778264,3.2078,2394.4,2394.3,2.89]
[1725517778667,3.2078,2394.4,2394.3,7.0668]
[1725517779068,3.2078,2394.4,2394.3,2.89]
[1725517780971,3.2078,2394.4,2394.3,7.0668]
[1725517781770,3.2078,2394.4,2394.3,7.35917]
[1725517782264,3.2078,2395.0,2394.3,13.0668]
[1725517782578,3.50009,2395.0,2394.7,2.89]
[1725517782874,3.2078,2395.0,2394.7,2.89]
[1725517783078,3.50009,2395.0,2394.7,2.89]
[1725517783270,3.2078,2395.0,2394.7,2.89]
[1725517783978,3.50009,2395.0,2394.7,2.89]
[1725517784678,0.2923,2394.9,2394.7,2.89]
[1725517785080,3.50009,2395.0,2394.7,2.89]
[1725517785880,0.2923,2394.9,2394.7,2.89]
[1725517786777,3.50009,2395.0,2394.7,2.89]
[1725517787680,3.2078,2395.0,2394.7,2.89]
[1725517787877,0.2923,2394.9,2394.7,2.89]
[1725517788783,3.50009,2395.0,2394.7,2.89]
[1725517789084,0.2923,2394.9,2394.7,2.89]
[1725517789285,3.2078,2395.0,2394.7,2.89]
[1725517789487,3.50009,2395.0,2394.7,2.89]
[1725517791680,3.2078,2395.0,2394.7,2.89]
[1725517791879,3.2078,2395.0,2394.6,0.0062658]
[1725517791880,4.176,2394.9,2394.6,0.0062658]
[1725517792079,3.93861,2394.7,2393.7,0.29244]
[1725517792381,3.93861,2394.7,2393.6,4.251]
[1725517792382,3.2078,2394.4,2393.6,4.251]
[1725517792576,0.29242,2394.0,2393.6,3.5677]
[1725517792781,0.29242,2394.0,2393.6,2.89]
[1725517792987,0.96994033,2394.0,2393.6,2.8962658]
[1725517793191,3.2078,2393.8,2393.6,2.8962658]
[1725517793583,3.50023,2393.8,2393.6,0.0062658]
[1725517794289,7.3854,2393.8,2393.6,0.0062658]
[1725517794487,3.2078,2393.8,2393.6,0.0062658]
[1725517794990,7.3854,2393.8,2393.6,0.0062658]
[1725517795684,0.6936,2393.9,2393.6,0.0062658]
[1725517796287,0.29244,2393.8,2393.6,0.0062658]
[1725517796586,3.50024,2393.8,2393.6,0.0062658]
[1725517796788,3.2078,2393.8,2393.6,0.0062658]
[1725517797285,0.00622033,2394.0,2393.7,0.29244]
[1725517797484,0.00622033,2394.0,2393.8,2.89]
[1725517797685,0.00622033,2394.0,2393.9,0.29242]
[1725517798890,0.00622033,2394.0,2393.9,4.46922]
[1725517799689,0.00622033,2394.0,2393.9,4.1768]
[1725517800285,0.00622033,2394.0,2393.7,4.2322]
[1725517800591,0.00622033,2394.0,2393.9,3.18242]
[1725517801190,0.00622033,2394.0,2393.9,7.0668]
[1725517801389,0.00622033,2394.0,2393.9,7.35922]
[1725517801890,0.00622033,2394.0,2393.9,7.0668]
[1725517802092,0.00622033,2394.0,2393.7,4.2322]
[1725517802292,0.00622033,2394.0,2393.6,0.0062658]
[1725517802293,0.29864033,2394.0,2393.6,0.0062658]
[1725517802493,0.00622033,2394.0,2393.6,0.0062658]
[1725517803093,0.00622033,2394.0,2393.7,0.29244]
[1725517803281,0.00622033,2394.0,2393.7,2.89]
[1725517804597,0.29864033,2394.0,2393.6,0.0062658]
[1725517804793,3.2078,2393.9,2393.6,0.0062658]
[1725517805895,3.50023,2393.9,2393.6,0.0062658]
[1725517806695,3.2078,2393.9,2393.6,0.0062658]
[1725517806890,3.50023,2393.9,2393.6,0.0062658]
[1725517807801,0.29244,2393.7,2393.6,0.0062658]
[1725517808289,4.47004,2393.7,2393.6,0.0062658]
[1725517809098,11.20116,2393.7,2393.6,5.8e-06]
[1725517810098,15.47108215,2393.7,2393.6,5.8e-06]
[1725517810293,11.20116,2393.7,2393.6,5.8e-06]
[1725517811401,4.47004,2393.7,2393.6,5.8e-06]
[1725517811610,0.6548,2393.8,2393.6,5.8e-06]
[1725517811797,0.94724,2393.8,2393.6,5.8e-06]
[1725517811996,0.6548,2393.8,2393.6,5.8e-06]
[1725517812404,6.737,2393.9,2393.6,5.8e-06]
[1725517812608,0.29244,2393.7,2393.6,5.8e-06]
[1725517813210,4.47004,2393.7,2393.6,5.8e-06]
[1725517813412,14.09116,2393.7,2393.6,5.8e-06]
[1725517813706,8.09116,2393.7,2393.6,5.8e-06]
[1725517813903,14.09116,2393.7,2393.6,5.8e-06]
[1725517814606,0.29253,2393.1,2392.7,0.6417]
[1725517814806,0.29253,2393.1,2392.6,55.37175]
[1725517814807,3.2078,2393.1,2392.6,55.37175]
[1725517815009,0.29256,2392.8,2392.6,55.37175]
[1725517816012,3.891,2393.1,2392.6,55.37175]
[1725517816211,0.29257,2392.7,2392.6,55.37175]
[1725517817211,4.47177,2392.7,2392.6,55.37175]
[1725517817710,11.20319,2392.7,2392.6,55.37175]
[1725517818217,11.20319,2392.7,2392.6,54.28728]
[1725517818409,10.47177,2392.7,2392.6,52.23097279]
[1725517818612,3.2078,2392.8,2392.6,52.23097279]
[1725517819315,3.50036,2392.8,2392.6,52.23097279]
[1725517820010,0.29257,2392.7,2392.6,52.23097279]
[1725517820213,4.47177,2392.7,2392.6,52.23097279]
[1725517820413,10.47177,2392.7,2392.6,52.23097279]
[1725517820607,3.50036,2392.8,2392.6,52.23097279]
[1725517820805,3.2078,2392.8,2392.6,52.23097279]
[1725517821007,3.50036,2392.8,2392.6,52.23097279]
[1725517821225,4.47177,2392.7,2392.6,52.23097279]
[1725517821714,4.1792,2392.7,2392.6,52.23097279]
[1725517821918,4.47177,2392.7,2392.6,52.23097279]
[1725517822215,10.47177,2392.7,2392.6,52.23097279]
[1725517822408,4.47177,2392.7,2392.6,52.23097279]
[1725517823008,10.47177,2392.7,2392.6,52.23097279]
[1725517823215,4.47177,2392.7,2392.6,52.23097279]
[1725517824219,10.47177,2392.7,2392.6,52.23097279]
[1725517824520,11.20319,2392.7,2392.6,51.35163279]
[1725517824720,11.20319,2392.7,2392.6,50.44533279]
[1725517824923,5.20319,2392.7,2392.6,50.44533279]
[1725517825320,11.20319,2392.7,2392.6,50.44533279]
[1725517825716,11.20319,2392.7,2392.6,48.92122043]
[1725517826332,4.47177,2392.7,2392.6,48.92122043]
[1725517826524,10.47177,2392.7,2392.6,48.92122043]
[1725517827619,4.47177,2392.7,2392.6,48.92122043]
[1725517827819,10.47177,2392.7,2392.6,48.92122043]
[1725517828126,11.20319,2392.7,2392.6,48.92122043]
[1725517831418,10.47177,2392.7,2392.6,48.92122043]
[1725517832224,11.20319,2392.7,2392.6,48.92122043]
[1725517832411,11.20319,2392.7,2392.6,46.53688043]
[1725517832412,15.93925089,2392.7,2392.6,46.53688043]
[1725517832616,15.93925089,2392.7,2392.6,43.32119043]
[1725517832928,15.93925089,2392.7,2392.6,38.61786043]
[1725517833222,15.93925089,2392.7,2392.6,36.92968043]
[1725517833426,16.67067089,2392.7,2392.6,36.25259127]
[1725517833823,15.93925089,2392.7,2392.6,36.25259127]
[1725517835417,9.20783089,2392.7,2392.6,36.25259127]
[1725517835731,4.47177,2392.7,2392.6,36.25259127]
[1725517836227,10.47177,2392.7,2392.6,36.25259127]
[1725517836420,4.47177,2392.7,2392.6,36.25259127]
[1725517836821,10.47177,2392.7,2392.6,36.25259127]
[1725517837721,4.47177,2392.7,2392.6,36.25259127]
[1725517837920,10.47177,2392.7,2392.6,36.25259127]
[1725517839927,11.20319,2392.7,2392.6,35.75379127]
[1725517840131,11.20319,2392.7,2392.6,35.55356127]
[1725517840429,11.3211968,2392.7,2392.6,34.4235076]
[1725517840621,15.70284204,2392.7,2392.6,10.15915749]
[1725517841120,15.70284204,2392.7,2392.6,9.95815749]
[1725517841325,9.18070529,2392.7,2392.6,9.95815749]
[1725517841619,10.79906005,2392.7,2392.6,9.95815749]
[1725517841828,4.79906005,2392.7,2392.6,9.95815749]
[1725517842021,4.68105325,2392.7,2392.6,9.95815749]
[1725517843426,4.68105325,2392.7,2392.6,8.19177539]
[1725517843427,11.20319,2392.7,2392.6,8.19177539]
[1725517843729,15.69223869,2392.7,2392.6,6.8063654]
[1725517843923,15.89897022,2392.7,2392.6,6.8063654]
[1725517844628,15.16755022,2392.7,2392.6,6.8063654]
[1725517845131,10.47177,2392.7,2392.6,6.8063654]
[1725517845334,4.47177,2392.7,2392.6,6.8063654]
[1725517845529,10.47177,2392.7,2392.6,6.8063654]
[1725517845933,4.47177,2392.7,2392.6,6.8063654]
[1725517846126,10.47177,2392.7,2392.6,6.8063654]
[1725517847737,4.47177,2392.7,2392.6,6.8063654]
[1725517848029,6.31114091,2392.8,2392.6,6.8063654]
[1725517848030,3.2078,2392.8,2392.6,6.8063654]
[1725517848222,3.2078,2392.8,2392.7,0.6606]
[1725517848431,3.2078,2392.8,2392.7,1.3584]
[1725517849124,3.2078,2393.5,2392.7,11.83016]
[1725517849320,3.2078,2393.9,2393.3,2.89]
[1725517849528,3.2078,2393.9,2393.3,3.18249]
[1725517849730,0.29247,2393.5,2393.2,3.2078]
[1725517849924,3.2078,2393.7,2392.9,2.89]
[1725517850123,0.29247,2393.5,2392.9,6.0978]
[1725517850731,0.29246,2393.6,2392.9,6.39034]
[1725517850927,0.29243,2393.9,2393.2,0.2925]
[1725517851231,0.00622033,2394.0,2393.1,3.18251]
[1725517851232,0.29243,2393.8,2393.1,3.18251]
[1725517851435,0.00622033,2394.0,2393.1,2.89]
[1725517851625,0.00622033,2394.0,2393.3,2.89]
[1725517851822,0.00622033,2394.0,2393.4,0.29248]
[1725517852022,0.00622033,2394.0,2393.5,0.29246]
[1725517852234,0.00622033,2394.0,2393.6,0.6764]
[1725517852638,0.00622033,2394.0,2393.6,4.5264]
[1725517852830,0.00622033,2394.0,2393.8,0.29243]
[1725517853231,0.00622033,2394.0,2393.8,4.47003]
[1725517853633,0.00622033,2394.0,2393.8,4.1776]
[1725517854338,0.00622033,2394.0,2393.6,0.6764]
[1725517855135,0.00622033,2394.0,2393.7,0.29244]
[1725517855732,0.00622033,2394.0,2393.7,4.1776]
[1725517856328,0.00622033,2394.0,2393.6,4.5264]
[1725517856635,0.00622033,2394.0,2393.6,0.6764]
[1725517856934,0.00622033,2394.0,2393.6,0.96885]
[1725517857333,0.00622033,2394.0,2393.7,4.1776]
[1725517857534,3.2078,2394.1,2393.4,1.3099]
[1725517857745,3.5002,2394.1,2393.4,1.3099]
[1725517857936,3.2078,2394.1,2393.4,4.5177]
[1725517858134,3.2078,2394.1,2393.5,0.29246]
[1725517858334,3.2078,2394.1,2393.6,0.29245]
[1725517858537,3.2078,2394.5,2393.6,3.85]
[1725517858736,0.0062658,2394.3,2393.8,0.0062658]
[1725517859526,0.0062658,2394.3,2393.9,0.29242]
[1725517859728,0.0062658,2394.3,2394.0,0.6432]
[1725517860032,0.0062658,2394.3,2394.0,1.57991]
[1725517860243,0.0062658,2394.3,2394.0,1.2875]
[1725517860633,0.0062658,2394.3,2394.1,0.29239]
[1725517860836,0.0062658,2394.3,2394.2,0.29238]
[1725517861033,0.0062658,2394.3,2394.0,8.9645]
[1725517861734,0.0062658,2394.3,2394.0,1.2875]
[1725517862829,0.2986458,2394.3,2394.0,1.2875]
[1725517863037,0.0062658,2394.3,2394.0,1.2875]
[1725517864526,0.0062658,2394.3,2393.8,0.0062658]
[1725517864739,0.0062658,2394.3,2394.0,3.5002]
[1725517865039,0.0062658,2394.3,2394.0,3.2078]
[1725517865338,0.0062658,2394.3,2393.8,5.5152958]
[1725517865533,0.0062658,2394.3,2393.8,5.2228658]
[1725517866035,0.0062658,2394.3,2393.9,0.29242]
[1725517866237,0.0062658,2394.3,2394.0,0.29241]
[1725517866541,0.0062658,2394.3,2393.9,0.29241]
[1725517866938,0.0062658,2394.3,2394.1,0.29239]
[1725517867438,0.0062658,2394.3,2394.1,4.46919]
[1725517867737,0.0062658,2394.3,2394.2,0.29238]
[1725517867948,0.0062658,2394.3,2394.1,4.46919]
[1725517868130,0.0062658,2394.3,2394.0,3.2078]
[1725517868337,0.0062658,2394.3,2394.0,7.677]
[1725517868536,0.0062658,2394.3,2394.0,7.3846]
[1725517868740,0.0062658,2394.3,2394.0,7.67701]
[1725517869134,0.2986458,2394.3,2393.8,4.5295658]
[1725517869340,0.0062658,2394.3,2393.8,4.5295658]
[1725517869545,0.2986458,2394.3,2393.8,4.5295658]
[1725517870041,0.2986458,2394.3,2393.8,4.8219958]
[1725517870343,0.0062658,2394.3,2393.8,4.8219958]
[1725517871149,0.0062658,2394.3,2394.1,0.29239]
[1725517871743,0.0062658,2394.3,2394.0,3.5002]
[1725517872436,0.2986458,2394.3,2393.8,4.8219958]
[1725517872638,0.2986358,2394.3,2393.8,4.8219958]
[1725517872840,0.0062658,2394.3,2393.9,0.29242]
[1725517873440,0.29239,2394.2,2393.8,4.5295658]
[1725517873746,0.2986458,2394.3,2393.8,4.5295658]
[1725517873944,0.2986458,2394.3,2393.8,3.8619958]
[1725517874145,0.0062658,2394.3,2393.9,0.29242]
[1725517874843,0.0062658,2394.3,2394.1,2.89]
[1725517875145,0.0062658,2394.3,2394.2,0.29238]
[1725517875545,7.3188,2395.0,2394.2,10.1768]
[1725517875546,4.111,2395.0,2394.2,10.1768]
[1725517875850,0.2923,2394.9,2394.7,2.89]
[1725517876049,8.04943,2395.3,2394.5,2.89]
[1725517876050,0.29232,2394.8,2394.5,2.89]
[1725517876445,10.2088,2395.3,2394.5,2.89]
[1725517876645,10.93943,2395.3,2394.5,3.18235]
[1725517877146,0.29229,2395.0,2394.5,3.18235]
[1725517877344,0.29229,2395.0,2394.5,2.89]
[1725517878847,0.684,2395.2,2394.5,3.18234]
[1725517879041,0.29228,2395.1,2394.5,3.18234]
[1725517879744,0.29229,2395.0,2394.5,3.18234]
[1725517880051,0.29226,2395.2,2394.6,0.29233]
[1725517880255,0.29226,2395.2,2394.6,3.50013]
[1725517880648,0.29226,2395.2,2394.6,3.2078]
[1725517880952,0.29226,2395.2,2394.7,0.29232]
[1725517882648,0.29226,2395.2,2394.8,0.29231]
[1725517882955,0.29227,2395.1,2394.7,3.18232]
[1725517883153,7.3188,2395.3,2394.7,3.18232]
[1725517883450,0.29227,2395.2,2394.7,3.18232]
[1725517884852,0.29219,2395.8,2395.4,0.29224]
[1725517885045,0.29219,2395.8,2395.5,2.89]
[1725517885452,4.40318,2395.9,2395.5,3.18222]
[1725517885653,0.29219,2395.8,2395.5,2.89]
[1725517885852,4.40318,2395.9,2395.5,2.89]
[1725517886351,4.111,2395.9,2395.5,2.89]
[1725517886557,0.29219,2395.8,2395.5,2.89]
[1725517886759,4.40318,2395.9,2395.5,2.89]
[1725517887056,4.111,2395.9,2395.5,2.89]
[1725517887257,4.40318,2395.9,2395.5,2.89]
[1725517890552,3.49997,2396.0,2395.5,2.89]
[1725517890851,3.49997,2396.0,2395.4,0.0062658]
[1725517890852,0.29222,2395.5,2395.4,0.0062658]
[1725517891250,5.80822,2395.5,2395.4,0.0062658]
[1725517891747,5.516,2395.5,2395.4,0.0062658]
[1725517891951,1.63382,2395.5,2395.4,0.0062658]
[1725517892160,5.80822,2395.5,2395.4,0.0062658]
[1725517892460,1.3416,2395.5,2395.4,0.0062658]
[1725517892948,1.63382,2395.5,2395.4,0.0062658]
[1725517893357,11.80822,2395.5,2395.4,0.0062658]
[1725517893559,14.69822,2395.5,2395.4,0.0062658]
[1725517893747,14.406,2395.5,2394.6,0.6487]
[1725517894058,14.406,2395.5,2393.6,6.0978]
[1725517894059,3.2078,2394.7,2393.6,6.0978]
[1725517894257,3.2078,2394.7,2393.7,1.3522]
[1725517894258,3.2078,2394.4,2393.7,1.3522]
[1725517894463,3.50017,2394.4,2393.7,1.3522]
[1725517895058,2.8962658,2394.3,2393.8,0.0062658]
[1725517895269,2.89,2394.1,2393.8,0.0062658]
[1725517895449,0.6776,2394.0,2393.8,0.0062658]
[1725517896050,4.1776,2393.9,2393.8,0.0062658]
[1725517896260,8.06192,2393.9,2393.8,0.0062658]
[1725517896558,14.06192,2393.9,2393.8,0.0062658]
[1725517897056,8.06192,2393.9,2393.8,0.0062658]
[1725517897261,0.7019,2393.9,2393.8,0.0062658]
[1725517897455,0.6776,2394.0,2393.8,4.1838658]
[1725517897655,0.0062658,2394.3,2393.8,0.0062658]
[1725517898361,0.2986358,2394.3,2393.8,0.0062658]
[1725517898552,0.0062658,2394.3,2393.8,0.0062658]
[1725517901860,0.2986458,2394.3,2393.8,0.0062658]
[1725517902163,0.0062658,2394.3,2393.8,0.0062658]
[1725517903077,0.29238,2394.2,2393.8,0.0062658]
[1725517903361,0.2924,2394.1,2393.8,0.0062658]
[1725517903564,0.99719,2394.2,2393.8,0.0062658]
[1725517903760,0.2924,2394.1,2393.8,0.0062658]
[1725517903965,0.29241,2394.0,2393.8,0.0062658]
[1725517904262,0.29242,2393.9,2393.8,0.0062658]
[1725517904759,4.47002,2393.9,2393.8,0.0062658]
[1725517904957,10.47002,2393.9,2393.8,0.0062658]
[1725517905858,3.5002,2394.1,2393.8,0.0062658]
[1725517906258,7.677,2394.1,2393.8,0.0062658]
[1725517906564,3.5002,2394.1,2393.8,0.0062658]
[1725517906767,7.677,2394.1,2393.8,0.0062658]
[1725517906960,3.2078,2394.1,2393.8,0.0062658]
[1725517907166,4.5548,2394.2,2393.8,0.0062658]
[1725517907470,4.84719,2394.2,2393.8,0.0062658]
[1725517907964,4.84718,2394.2,2393.8,0.0062658]
[1725517908366,0.29241,2394.0,2393.8,0.0062658]
[1725517908559,0.2924,2394.1,2393.8,0.0062658]
[1725517908766,4.4692,2394.1,2393.8,0.0062658]
[1725517909063,0.2924,2394.1,2393.8,0.0062658]
[1725517909261,0.29241,2394.0,2393.8,0.0062658]
[1725517910161,0.29242,2393.9,2393.8,0.0062658]
[1725517910357,4.47002,2393.9,2393.8,0.0062658]
[1725517911363,10.47002,2393.9,2393.8,0.0062658]
[1725517911979,11.20108,2393.9,2393.8,0.0062658]
[1725517912781,11.20108,2393.9,2392.9,0.6758]
[1725517912782,10.1776,2393.9,2392.9,0.6758]
[1725517913083,0.2925,2393.3,2392.5,4.14878]
[1725517913268,0.2925,2393.3,2392.6,0.6454]
[1725517913472,0.9731,2393.3,2392.6,0.6454]
[1725517913775,0.9731,2393.3,2392.7,0.0062658]
[1725517913976,0.29253,2393.0,2392.7,0.0062658]
[1725517914176,3.2078,2392.9,2392.7,0.0062658]
[1725517914476,0.29255,2392.8,2392.7,0.0062658]
[1725517914672,4.47175,2392.8,2392.7,0.0062658]
[1725517914976,4.47175,2392.8,2391.8,0.6702]
[1725517914977,0.2926,2392.5,2391.8,0.6702]
[1725517915172,0.29262,2392.3,2391.7,3.8532]
[1725517915472,0.7022,2392.4,2391.7,3.8532]
[1725517915673,0.9948,2392.4,2391.7,3.8532]
[1725517915884,0.29262,2392.3,2391.8,0.0062658]
[1725517916072,3.50042,2392.3,2391.4,2.4286658]
[1725517916972,3.50042,2392.3,2391.6,0.0062658]
[1725517917472,0.29263,2392.2,2391.6,0.0062658]
[1725517917671,3.2078,2392.3,2391.6,0.0062658]
[1725517917672,0.29265,2392.1,2391.6,0.0062658]
[1725517918383,0.29266,2392.0,2391.6,0.0062658]
[1725517918587,3.50046,2392.0,2391.6,0.0062658]
[1725517919678,3.2078,2392.0,2391.6,0.0062658]
[1725517919881,0.6426,2392.1,2391.6,0.0062658]
[1725517920477,11.871,2392.4,2391.7,3.85]
[1725517920478,4.8132,2392.4,2391.7,3.85]
[1725517920781,4.8132,2392.4,2391.8,1.3854]
[1725517920982,4.8132,2392.4,2391.8,1.67807]
[1725517921379,4.8132,2392.4,2391.9,3.2078]
[1725517921591,4.111,2392.4,2391.9,3.2078]
[1725517921779,3.2078,2392.8,2392.3,0.29261]
[1725517921980,0.6857,2392.9,2392.5,0.29259]
[1725517922180,0.6857,2392.9,2392.2,3.2078]
[1725517922181,0.6857,2392.9,2392.3,0.29261]
[1725517922497,0.6857,2392.9,2392.2,7.0578]
[1725517922498,0.97825,2392.9,2392.2,3.50042]
[1725517922888,4.18605,2392.9,2392.2,3.50042]
[1725517923185,0.6857,2392.9,2392.3,0.29261]
[1725517923391,0.97824,2392.9,2392.2,3.50042]
[1725517923985,0.97825,2392.9,2392.2,3.50043]
[1725517924185,4.18605,2392.9,2392.2,3.50043]
[1725517924398,0.6857,2392.9,2392.3,0.29261]
[1725517924602,0.6857,2392.9,2392.2,7.0578]
[1725517924794,0.6857,2392.9,2392.5,0.29259]
[1725517925298,0.0062658,2393.1,2392.5,3.2078]
[1725517925487,0.0062658,2393.1,2392.8,3.2078]
[1725517925688,0.0062658,2393.1,2392.9,0.29254]
[1725517925892,0.0062658,2393.1,2392.8,3.50035]
[1725517926393,0.0062658,2393.1,2392.6,1.3777]
[1725517926598,0.0062658,2393.1,2392.6,1.67028]
[1725517926794,0.2987858,2393.1,2392.6,1.3777]
[1725517927484,0.0062658,2393.1,2392.6,1.3777]
[1725517927688,0.0062658,2393.1,2392.7,0.29256]
[1725517927885,0.0062658,2393.1,2392.6,1.3777]
[1725517927886,0.0062658,2393.1,2392.8,0.29255]
[1725517928293,0.0062658,2393.1,2392.6,1.3777]
[1725517928490,0.0062658,2393.1,2392.8,3.2078]
[1725517928688,0.0062658,2393.1,2392.8,3.50035]
[1725517928900,0.0062658,2393.1,2392.8,3.2078]
[1725517929293,0.0062658,2393.1,2392.8,3.50035]
[1725517929795,0.0062658,2393.1,2393.0,0.29253]
[1725517930192,0.0062658,2393.1,2393.0,4.47093]
[1725517930392,7.961,2393.9,2393.0,10.1784]
[1725517930689,0.29247,2393.5,2393.1,3.2078]
[1725517930887,0.2925,2393.3,2393.1,3.2078]
[1725517931290,10.07717,2393.9,2393.0,0.29253]
[1725517931497,0.29249,2393.4,2392.9,0.29254]
[1725517931798,0.29247,2393.5,2393.0,0.29253]
[1725517931996,0.29248,2393.4,2392.9,0.29254]
[1725517932192,0.29248,2393.5,2393.0,0.29252]
[1725517932600,0.29248,2393.4,2392.9,0.29253]
[1725517933200,3.8562658,2393.6,2392.8,3.5066158]
[1725517933393,0.29251,2393.2,2392.8,3.2140658]
[1725517933594,3.2078,2393.5,2392.8,0.2988158]
[1725517933791,0.2925,2393.3,2392.8,3.2140658]
[1725517933992,0.29249,2393.4,2392.9,0.29254]
[1725517934198,0.29249,2393.3,2392.9,0.29254]
[1725517934391,0.29249,2393.3,2392.8,3.2140658]
[1725517934392,0.29249,2393.3,2392.8,3.5066158]
[1725517934590,0.29249,2393.4,2392.9,0.29254]
[1725517935593,7.9672658,2393.6,2392.8,3.2140658]
[1725517935789,8.2597358,2393.6,2392.8,3.2140658]
[1725517935993,0.29247,2393.5,2393.1,3.50031]
[1725517936293,4.1172658,2393.6,2393.2,0.2925]
[1725517936901,4.1172658,2393.6,2393.1,3.2078]
[1725517937101,4.1172658,2393.6,2393.4,0.29247]
[1725517937301,0.0062658,2393.6,2393.5,0.29247]
[1725517937600,0.0062658,2393.6,2393.4,0.29247]
[1725517938799,0.0062658,2393.6,2393.5,0.29247]
[1725517939003,0.0062658,2393.6,2393.4,0.29248]
[1725517939201,0.0062658,2393.6,2393.3,0.29249]
[1725517939997,0.0062658,2393.6,2393.4,0.29248]
[1725517940805,0.0062658,2393.6,2393.3,0.29249]
[1725517941501,0.0062658,2393.6,2393.4,0.29248]
[1725517943897,0.0062658,2393.6,2393.3,0.29249]
[1725517945200,0.0062658,2393.6,2393.4,0.29248]
[1725517945602,0.0062658,2393.6,2393.5,0.29247]
[1725517945904,0.0062658,2393.6,2393.5,10.47007]
[1725517946110,9.855,2394.6,2394.2,0.29238]
[1725517946404,4.40333,2394.7,2394.3,0.29237]
[1725517946405,5.08573,2394.7,2394.3,0.29237]
[1725517946709,5.20418807,2394.7,2394.2,0.29238]
[1725517946910,5.20418807,2394.7,2394.1,2.89]
[1725517947102,5.20418807,2394.7,2394.2,0.0062658]
[1725517947103,5.21045387,2394.7,2394.2,0.0062658]
[1725517947307,0.29234,2394.6,2394.2,0.0062658]
[1725517947500,5.0919958,2394.7,2394.2,0.2986458]
[1725517947705,4.7996658,2394.7,2394.3,0.29237]
[1725517948099,5.0919858,2394.7,2394.2,0.0062658]
[1725517948299,0.29235,2394.5,2394.2,0.0062658]
[1725517948499,2.89,2394.3,2393.5,3.2078]
[1725517948699,2.89,2394.1,2393.5,3.2078]
[1725517949000,2.89,2394.1,2393.6,0.29245]
[1725517949407,1.3233,2394.2,2393.5,3.2078]
[1725517949607,1.3233,2394.2,2393.7,0.29244]
[1725517950615,1.61568,2394.2,2393.6,0.2987158]
[1725517951110,1.3233,2394.2,2393.7,0.29244]
[1725517951711,1.3233,2394.2,2393.8,0.29243]
[1725517951903,0.6424,2394.2,2393.8,3.2078]
[1725517952103,0.6709,2394.3,2394.0,0.2924]
[1725517952509,0.6709,2394.3,2394.1,3.2078]
[1725517952704,0.7292,2394.6,2394.2,0.29238]
[1725517952911,0.0062658,2394.7,2394.1,3.2078]
[1725517953116,0.0062658,2394.7,2394.5,0.29234]
[1725517953313,0.0062658,2394.7,2394.4,3.50015]
[1725517953508,0.0062658,2394.7,2394.5,0.29235]
[1725517953713,0.0062658,2394.7,2394.6,0.29233]
[1725517954310,0.0062658,2394.7,2394.6,4.46833]
[1725517955019,0.0062658,2394.7,2394.6,10.46833]
[1725517955214,1.01266,2395.3,2394.6,10.176]
[1725517955215,0.7204,2395.3,2394.6,10.176]
[1725517955404,0.7204,2395.3,2394.6,3.2078]
[1725517955711,0.6762,2395.6,2395.1,0.29227]
[1725517956218,0.6824658,2395.6,2395.1,0.2985258]
[1725517956412,0.6824658,2395.6,2395.2,3.2078]
[1725517956615,0.29223,2395.5,2395.1,0.0062658]
[1725517956912,0.9746858,2395.6,2395.1,0.0062658]
[1725517957117,0.6824658,2395.6,2395.1,0.2985358]
[1725517957417,0.6824658,2395.6,2395.1,3.5063358]
[1725517958611,0.6824658,2395.6,2395.2,0.29225]
[1725517958806,0.6824658,2395.6,2395.1,3.2140658]
[1725517958807,0.0062658,2395.6,2395.5,3.50002]
[1725517959039,0.0062658,2395.6,2395.5,7.67442]
[1725517959214,0.0062658,2395.6,2395.5,13.67442]
[1725517960115,0.0062658,2395.6,2395.5,3.2078]
[1725517960622,0.0062658,2395.6,2395.5,3.50002]
[1725517960919,0.0062658,2395.6,2395.5,7.3822]
[1725517961810,0.0062658,2395.6,2395.5,3.2078]
[1725517962007,0.0062658,2395.6,2395.3,0.29224]
[1725517962623,0.0062658,2395.6,2395.2,3.858]
[1725517962624,0.0062658,2395.6,2395.4,0.29223]
[1725517963415,0.0062658,2395.6,2395.5,0.29222]
[1725517963616,0.0062658,2395.6,2395.5,3.50002]
[1725517963819,0.0062658,2395.6,2395.5,7.3822]
[1725517964119,0.0062658,2395.6,2395.2,4.15025]
[1725517964313,0.0062658,2395.6,2395.3,0.29224]
[1725517967216,0.0062658,2395.6,2395.2,3.858]
[1725517967623,0.0062658,2395.6,2395.2,3.2078]
[1725517967816,4.5262658,2395.6,2395.1,0.0062658]
[1725517968015,0.9684858,2395.6,2395.1,0.0062658]
[1725517968320,0.9684858,2395.6,2395.1,0.2985358]
[1725517968724,0.6762658,2395.6,2395.1,0.2985358]
[1725517969819,0.6762658,2395.6,2395.1,0.0062658]
[1725517970013,0.29223,2395.5,2395.1,0.0062658]
[1725517970228,0.6716,2395.4,2395.1,0.0062658]
[1725517971227,0.6716,2395.4,2395.1,0.2985358]
[1725517971427,0.6716,2395.4,2395.2,0.29226]
[1725517971628,0.0062658,2395.6,2395.2,0.29225]
[1725517971828,0.6716658,2395.6,2395.1,0.0062658]
[1725517972029,0.9638858,2395.6,2395.1,0.2985358]
[1725517972225,0.29223,2395.5,2395.1,0.0062658]
[1725517972621,0.6716658,2395.6,2395.1,0.0062658]
[1725517973131,0.6716658,2395.6,2395.3,0.29224]
[1725517975334,0.6716658,2395.6,2395.2,3.2078]
[1725517975747,0.6716658,2395.6,2395.4,0.01040673]
[1725517976051,0.6716658,2395.6,2395.4,0.30263673]
[1725517976346,0.6716658,2395.6,2395.5,0.29222]
[1725517976547,0.6716658,2395.6,2395.4,0.30263673]